[Event "Titled Tuesday Blitz April 19 Early 2022"]
[White "Nozdrachev, Leonid"]
[Black "Jobava, Baadur"]
[WhiteFideId "24113433"]
[BlackFideId "13601520"]
[WhiteElo "2242"]
[BlackElo "2617"]
[Result "1-0"]
[Round "01"]
[TimeControl "180+1"]
[Date "2022.04.19"]
[WhiteClock "0:00:06"]
[BlackClock "0:02:16"]

1. e4 {[%clk 0:02:51]}  c6 {[%clk 0:02:59]} 2. c4 {[%clk 0:02:38]}  d5 {[%clk 0:03:00]} 3. cxd5 {[%clk 0:02:31]}  cxd5 {[%clk 0:03:01]} 4. exd5 {[%clk 0:02:31]}  Nf6 {[%clk 0:03:01]} 5. Nc3 {[%clk 0:02:28]}  Nxd5 {[%clk 0:03:00]} 6. Bc4 {[%clk 0:02:27]}  Nb6 {[%clk 0:03:00]} 7. Bb5+ {[%clk 0:02:23]}  Bd7 {[%clk 0:03:00]} 8. Qb3 {[%clk 0:02:21]}  e6 {[%clk 0:02:59]} 9. d4 {[%clk 0:02:19]}  Nc6 {[%clk 0:02:59]} 10. Nf3 {[%clk 0:02:18]}  Be7 {[%clk 0:02:58]} 11. O-O {[%clk 0:02:15]}  O-O {[%clk 0:02:59]} 12. Be3 {[%clk 0:02:09]}  Rc8 {[%clk 0:02:59]} 13. Bd3 {[%clk 0:02:04]}  Na5 {[%clk 0:02:59]} 14. Qc2 {[%clk 0:02:00]}  Nac4 {[%clk 0:02:59]} 15. Bxh7+ {[%clk 0:01:56]}  Kh8 {[%clk 0:02:59]} 16. Be4 {[%clk 0:01:47]}  Na4 {[%clk 0:02:58]} 17. Qe2 {[%clk 0:01:25]}  Nxc3 {[%clk 0:02:48]} 18. bxc3 {[%clk 0:01:26]}  Nd6 {[%clk 0:02:49]} 19. Ng5 {[%clk 0:01:18]}  g6 {[%clk 0:02:39]} 20. Qg4 {[%clk 0:01:09]}  Kg7 {[%clk 0:02:39]} 21. Nxf7 {[%clk 0:01:03]}  Rxf7 {[%clk 0:02:40]} 22. Qxg6+ {[%clk 0:00:55]}  Kf8 {[%clk 0:02:40]} 23. Bh6+ {[%clk 0:00:54]}  Ke8 {[%clk 0:02:41]} 24. Qg8+ {[%clk 0:00:54]}  Bf8 {[%clk 0:02:41]} 25. Bg6 {[%clk 0:00:36]}  Qe7 {[%clk 0:02:41]} 26. d5 {[%clk 0:00:31]}  Kd8 {[%clk 0:02:26]} 27. Bxf7 {[%clk 0:00:28]}  Kc7 {[%clk 0:02:26]} 28. Bf4 {[%clk 0:00:17]}  Bh6 {[%clk 0:02:24]} 29. Bxd6+ {[%clk 0:00:15]}  Qxd6 {[%clk 0:02:25]} 30. Qg6 {[%clk 0:00:14]}  Rh8 {[%clk 0:02:25]} 31. dxe6 {[%clk 0:00:10]}  Bc6 {[%clk 0:02:26]} 32. Rad1 {[%clk 0:00:07]}  Bd2 {[%clk 0:02:26]} 33. h3 {[%clk 0:00:06]}  Qd5 {[%clk 0:02:20]} 34. Qg3+ {[%clk 0:00:05]}  Kb6 {[%clk 0:02:20]} 35. Rxd2 {[%clk 0:00:05]}  Qxd2 {[%clk 0:02:20]} 36. Qe3+ {[%clk 0:00:05]}  Qxe3 {[%clk 0:02:21]} 37. fxe3 {[%clk 0:00:06]}  Kc7 {[%clk 0:02:21]} 38. Rd1 {[%clk 0:00:06]}  Rh7 {[%clk 0:02:20]} 39. Kf2 {[%clk 0:00:06]}  Rg7 {[%clk 0:02:21]} 40. g4 {[%clk 0:00:06]}  Rg5 {[%clk 0:02:21]} 41. Kg3 {[%clk 0:00:06]}  Re5 {[%clk 0:02:22]} 42. Kf4 {[%clk 0:00:06]}  Re4+ {[%clk 0:02:22]} 43. Kf5 {[%clk 0:00:07]}  Rxe3 {[%clk 0:02:23]} 44. h4 {[%clk 0:00:07]}  Ba4 {[%clk 0:02:22]} 45. Rd4 {[%clk 0:00:07]}  Rf3+ {[%clk 0:02:23]} 46. Ke4 {[%clk 0:00:07]}  Bc6+ {[%clk 0:02:23]} 47. Ke5 {[%clk 0:00:07]}  Rxc3 {[%clk 0:02:22]} 48. Kf6 {[%clk 0:00:07]}  Rf3+ {[%clk 0:02:22]} 49. Kg7 {[%clk 0:00:07]}  Kb6 {[%clk 0:02:20]} 50. g5 {[%clk 0:00:07]}  Kc5 {[%clk 0:02:20]} 51. Rg4 {[%clk 0:00:07]}  Kd6 {[%clk 0:02:20]} 52. g6 {[%clk 0:00:06]}  Ke7 {[%clk 0:02:21]} 53. h5 {[%clk 0:00:06]}  Rh3 {[%clk 0:02:16]} 54. h6 {[%clk 0:00:06]}  Bf3 {[%clk 0:02:17]} 55. Rf4 {[%clk 0:00:06]}  Bd5 {[%clk 0:02:16]} 56. h7 {[%clk 0:00:06]}  Bxa2 {[%clk 0:02:15]} 57. h8=Q {[%clk 0:00:06]}  Rxh8 {[%clk 0:02:16]} 58. Kxh8 {[%clk 0:00:06]} 1-0


[Site "https://www.chess.com"]

[Event "Titled Tuesday Blitz April 19 Early 2022"]
[White "Oganian, Miran"]
[Black "Akhmedinov, Satbek"]
[WhiteFideId "4122488"]
[BlackFideId "13714287"]
[WhiteElo "2357"]
[BlackElo "1889"]
[Result "1-0"]
[Round "01"]
[TimeControl "180+1"]
[Date "2022.04.19"]
[WhiteClock "0:00:08"]
[BlackClock "0:00:02"]

1. e4 {[%clk 0:02:59]}  c5 {[%clk 0:02:57]} 2. Nf3 {[%clk 0:02:59]}  Nc6 {[%clk 0:02:58]} 3. c3 {[%clk 0:02:59]}  Nf6 {[%clk 0:02:58]} 4. e5 {[%clk 0:02:59]}  Nd5 {[%clk 0:02:56]} 5. d4 {[%clk 0:03:00]}  cxd4 {[%clk 0:02:56]} 6. cxd4 {[%clk 0:03:01]}  d6 {[%clk 0:02:57]} 7. Bc4 {[%clk 0:03:01]}  e6 {[%clk 0:02:56]} 8. O-O {[%clk 0:03:01]}  dxe5 {[%clk 0:02:55]} 9. dxe5 {[%clk 0:02:59]}  Be7 {[%clk 0:02:55]} 10. Bd2 {[%clk 0:02:58]}  O-O {[%clk 0:02:55]} 11. Nc3 {[%clk 0:02:58]}  Nb6 {[%clk 0:02:54]} 12. Bb3 {[%clk 0:02:59]}  Nd4 {[%clk 0:02:54]} 13. Nxd4 {[%clk 0:02:52]}  Qxd4 {[%clk 0:02:55]} 14. Qe2 {[%clk 0:02:52]}  Nd7 {[%clk 0:02:42]} 15. Rfe1 {[%clk 0:02:33]}  Nxe5 {[%clk 0:02:37]} 16. Rad1 {[%clk 0:02:32]}  Nc6 {[%clk 0:02:33]} 17. Bc2 {[%clk 0:02:28]}  f5 {[%clk 0:02:23]} 18. Bb3 {[%clk 0:02:16]}  Bf6 {[%clk 0:02:10]} 19. Nb5 {[%clk 0:02:02]}  Qb6 {[%clk 0:02:02]} 20. Be3 {[%clk 0:02:00]}  Qa5 {[%clk 0:02:01]} 21. Bc5 {[%clk 0:01:46]}  Rd8 {[%clk 0:01:55]} 22. Bxe6+ {[%clk 0:01:37]}  Kh8 {[%clk 0:01:28]} 23. b4 {[%clk 0:01:18]}  Nxb4 {[%clk 0:01:25]} 24. Bxc8 {[%clk 0:01:16]}  Rdxc8 {[%clk 0:01:23]} 25. Bxb4 {[%clk 0:00:39]}  Qxb4 {[%clk 0:01:24]} 26. Nd6 {[%clk 0:00:40]}  Rf8 {[%clk 0:01:20]} 27. Qe6 {[%clk 0:00:36]}  Bc3 {[%clk 0:01:09]} 28. Re3 {[%clk 0:00:26]}  g6 {[%clk 0:00:48]} 29. Nf7+ {[%clk 0:00:22]}  Kg7 {[%clk 0:00:48]} 30. Ng5 {[%clk 0:00:23]}  Rad8 {[%clk 0:00:44]} 31. Rd7+ {[%clk 0:00:18]}  Rxd7 {[%clk 0:00:38]} 32. Qxd7+ {[%clk 0:00:18]}  Kh6 {[%clk 0:00:36]} 33. h4 {[%clk 0:00:17]}  Bg7 {[%clk 0:00:19]} 34. Nf7+ {[%clk 0:00:11]}  Kh5 {[%clk 0:00:17]} 35. Rg3 {[%clk 0:00:11]}  Rxf7 {[%clk 0:00:11]} 36. Qxf7 {[%clk 0:00:08]}  Qb1+ {[%clk 0:00:11]} 37. Kh2 {[%clk 0:00:08]}  Qb2 {[%clk 0:00:12]} 38. f4 {[%clk 0:00:07]}  Qd4 {[%clk 0:00:03]} 39. Qe7 {[%clk 0:00:07]}  Qf6 {[%clk 0:00:02]} 40. Qxf6 {[%clk 0:00:06]}  Bxf6 {[%clk 0:00:03]} 41. Rb3 {[%clk 0:00:06]}  b6 {[%clk 0:00:03]} 42. g3 {[%clk 0:00:07]}  a5 {[%clk 0:00:04]} 43. Kh3 {[%clk 0:00:08]}  Be7 {[%clk 0:00:04]} 44. Rxb6 {[%clk 0:00:07]}  Bb4 {[%clk 0:00:02]} 45. Rb7 {[%clk 0:00:08]}  h6 {[%clk 0:00:03]} 46. Rh7 {[%clk 0:00:08]}  Bc5 {[%clk 0:00:02]} 47. Kg2 {[%clk 0:00:08]}  Be3 {[%clk 0:00:03]} 48. Kf3 {[%clk 0:00:08]}  Bd2 {[%clk 0:00:03]} 49. Rd7 {[%clk 0:00:09]}  Bb4 {[%clk 0:00:04]} 50. Rd5 {[%clk 0:00:09]}  a4 {[%clk 0:00:03]} 51. Rb5 {[%clk 0:00:08]}  Bc3 {[%clk 0:00:02]} 52. Rb6 {[%clk 0:00:08]}  Bb2 {[%clk 0:00:02]} 53. Rxb2 {[%clk 0:00:08]} 1-0


[Site "https://www.chess.com"]

[Event "Titled Tuesday Blitz April 19 Early 2022"]
[White "Omariev, Maksim"]
[Black "Korchmar, Vasiliy"]
[WhiteFideId "4193423"]
[BlackFideId "24131750"]
[WhiteElo "2466"]
[BlackElo "2370"]
[Result "1-0"]
[Round "01"]
[TimeControl "180+1"]
[Date "2022.04.19"]
[WhiteClock "0:00:09"]
[BlackClock "0:00:01"]

1. g4 {[%clk 0:02:59]}  g6 {[%clk 0:02:54]} 2. Bg2 {[%clk 0:02:58]}  Bg7 {[%clk 0:02:55]} 3. h3 {[%clk 0:02:59]}  d5 {[%clk 0:02:55]} 4. d4 {[%clk 0:02:59]}  c5 {[%clk 0:02:51]} 5. c3 {[%clk 0:03:00]}  cxd4 {[%clk 0:02:51]} 6. cxd4 {[%clk 0:03:00]}  Nc6 {[%clk 0:02:52]} 7. Nf3 {[%clk 0:03:00]}  Nf6 {[%clk 0:02:52]} 8. Nc3 {[%clk 0:03:00]}  Ne4 {[%clk 0:02:53]} 9. Qd3 {[%clk 0:02:46]}  h5 {[%clk 0:02:30]} 10. Nxe4 {[%clk 0:02:40]}  dxe4 {[%clk 0:02:28]} 11. Qxe4 {[%clk 0:02:41]}  hxg4 {[%clk 0:02:09]} 12. hxg4 {[%clk 0:02:42]}  Rxh1+ {[%clk 0:02:09]} 13. Bxh1 {[%clk 0:02:43]}  Nxd4 {[%clk 0:02:10]} 14. Nxd4 {[%clk 0:01:46]}  Qxd4 {[%clk 0:02:11]} 15. Qxd4 {[%clk 0:01:21]}  Bxd4 {[%clk 0:02:12]} 16. Bf3 {[%clk 0:01:16]}  Bd7 {[%clk 0:02:02]} 17. Rb1 {[%clk 0:01:04]}  Rc8 {[%clk 0:00:55]} 18. Bxb7 {[%clk 0:01:00]}  Rb8 {[%clk 0:00:56]} 19. Bf3 {[%clk 0:00:56]}  Bc3+ {[%clk 0:00:55]} 20. Kd1 {[%clk 0:00:55]}  a5 {[%clk 0:00:39]} 21. Kc2 {[%clk 0:00:53]}  Bf6 {[%clk 0:00:37]} 22. Bf4 {[%clk 0:00:45]}  Rc8+ {[%clk 0:00:36]} 23. Kd2 {[%clk 0:00:45]}  a4 {[%clk 0:00:23]} 24. b3 {[%clk 0:00:42]}  a3 {[%clk 0:00:23]} 25. Rc1 {[%clk 0:00:43]}  Rd8 {[%clk 0:00:21]} 26. Bc7 {[%clk 0:00:41]}  Rc8 {[%clk 0:00:08]} 27. Bb7 {[%clk 0:00:41]}  Bb2 {[%clk 0:00:07]} 28. Rc2 {[%clk 0:00:41]}  Rxc7 {[%clk 0:00:05]} 29. Rxc7 {[%clk 0:00:41]}  Be6 {[%clk 0:00:05]} 30. Kc2 {[%clk 0:00:17]}  Bxg4 {[%clk 0:00:05]} 31. f3 {[%clk 0:00:17]}  Bf5+ {[%clk 0:00:05]} 32. e4 {[%clk 0:00:17]}  Bh3 {[%clk 0:00:05]} 33. Bc6+ {[%clk 0:00:17]}  Kd8 {[%clk 0:00:05]} 34. Rb7 {[%clk 0:00:17]}  Bg2 {[%clk 0:00:05]} 35. f4 {[%clk 0:00:16]}  f6 {[%clk 0:00:05]} 36. b4 {[%clk 0:00:16]}  g5 {[%clk 0:00:05]} 37. fxg5 {[%clk 0:00:16]}  fxg5 {[%clk 0:00:06]} 38. b5 {[%clk 0:00:15]}  g4 {[%clk 0:00:05]} 39. Rd7+ {[%clk 0:00:16]}  Kc8 {[%clk 0:00:05]} 40. Rxe7 {[%clk 0:00:16]}  Bf3 {[%clk 0:00:01]} 41. e5 {[%clk 0:00:15]}  Bd4 {[%clk 0:00:01]} 42. e6 {[%clk 0:00:09]} 1-0


[Site "https://www.chess.com"]

[Event "Titled Tuesday Blitz April 19 Early 2022"]
[White "Orlov, Georgi"]
[Black "Sarana, Alexey"]
[WhiteFideId "2011271"]
[BlackFideId "24133795"]
[WhiteElo "2523"]
[BlackElo "2666"]
[Result "0-1"]
[Round "01"]
[TimeControl "180+1"]
[Date "2022.04.19"]
[WhiteClock "0:00:07"]
[BlackClock "0:00:05"]

1. e4 {[%clk 0:02:57]}  c5 {[%clk 0:02:52]} 2. Nf3 {[%clk 0:02:56]}  d6 {[%clk 0:02:53]} 3. d4 {[%clk 0:02:53]}  cxd4 {[%clk 0:02:54]} 4. Nxd4 {[%clk 0:02:53]}  Nf6 {[%clk 0:02:55]} 5. Nc3 {[%clk 0:02:53]}  a6 {[%clk 0:02:55]} 6. Be2 {[%clk 0:02:51]}  e5 {[%clk 0:02:55]} 7. Nb3 {[%clk 0:02:50]}  Be7 {[%clk 0:02:55]} 8. O-O {[%clk 0:02:50]}  O-O {[%clk 0:02:55]} 9. Be3 {[%clk 0:02:48]}  Be6 {[%clk 0:02:55]} 10. a4 {[%clk 0:02:44]}  Nc6 {[%clk 0:02:53]} 11. f4 {[%clk 0:02:41]}  exf4 {[%clk 0:02:50]} 12. Rxf4 {[%clk 0:02:39]}  Nd7 {[%clk 0:02:46]} 13. Qd2 {[%clk 0:02:21]}  Nde5 {[%clk 0:02:43]} 14. Nd5 {[%clk 0:02:13]}  Bg5 {[%clk 0:02:41]} 15. Rf2 {[%clk 0:02:10]}  Bxe3 {[%clk 0:02:40]} 16. Qxe3 {[%clk 0:02:10]}  Bxd5 {[%clk 0:02:39]} 17. exd5 {[%clk 0:02:09]}  Ne7 {[%clk 0:02:38]} 18. c4 {[%clk 0:01:56]}  Rc8 {[%clk 0:02:38]} 19. Qd4 {[%clk 0:01:53]}  Qc7 {[%clk 0:02:14]} 20. Rc1 {[%clk 0:01:52]}  Rfd8 {[%clk 0:02:14]} 21. a5 {[%clk 0:01:51]}  g6 {[%clk 0:02:07]} 22. g4 {[%clk 0:01:47]}  Re8 {[%clk 0:01:52]} 23. Rc3 {[%clk 0:01:46]}  Rcd8 {[%clk 0:01:51]} 24. Rh3 {[%clk 0:01:42]}  Kg7 {[%clk 0:01:50]} 25. Qf4 {[%clk 0:01:38]}  Ng8 {[%clk 0:01:49]} 26. g5 {[%clk 0:01:34]}  b6 {[%clk 0:01:21]} 27. Nd2 {[%clk 0:01:13]}  Rf8 {[%clk 0:00:37]} 28. Ne4 {[%clk 0:01:06]}  f5 {[%clk 0:00:31]} 29. gxf6+ {[%clk 0:00:51]}  Kh8 {[%clk 0:00:31]} 30. Qh4 {[%clk 0:00:37]}  Rd7 {[%clk 0:00:31]} 31. Ng5 {[%clk 0:00:34]}  bxa5 {[%clk 0:00:22]} 32. Ne6 {[%clk 0:00:25]}  Qb8 {[%clk 0:00:22]} 33. Nxf8 {[%clk 0:00:22]}  Qxf8 {[%clk 0:00:23]} 34. f7 {[%clk 0:00:20]}  Rxf7 {[%clk 0:00:21]} 35. c5 {[%clk 0:00:20]}  dxc5 {[%clk 0:00:18]} 36. Rxf7 {[%clk 0:00:18]}  Qxf7 {[%clk 0:00:19]} 37. d6 {[%clk 0:00:18]}  Nf6 {[%clk 0:00:17]} 38. Qf4 {[%clk 0:00:16]}  Ned7 {[%clk 0:00:11]} 39. Bg4 {[%clk 0:00:14]}  Qd5 {[%clk 0:00:08]} 40. Bxd7 {[%clk 0:00:14]}  Qd1+ {[%clk 0:00:07]} 41. Kg2 {[%clk 0:00:13]}  Nxd7 {[%clk 0:00:06]} 42. Re3 {[%clk 0:00:09]}  Qd5+ {[%clk 0:00:06]} 43. Kg3 {[%clk 0:00:09]}  g5 {[%clk 0:00:05]} 44. Re8+ {[%clk 0:00:08]}  Kg7 {[%clk 0:00:06]} 45. Re7+ {[%clk 0:00:08]}  Kh6 {[%clk 0:00:05]} 46. Qf3 {[%clk 0:00:07]}  Qxd6+ {[%clk 0:00:05]} 47. Kg4 {[%clk 0:00:07]}  Qxe7 {[%clk 0:00:04]} 48. Qc6+ {[%clk 0:00:07]}  Kg7 {[%clk 0:00:03]} 49. Kf5 {[%clk 0:00:08]}  Qe5+ {[%clk 0:00:03]} 50. Kg4 {[%clk 0:00:08]}  Qf4+ {[%clk 0:00:04]} 51. Kh3 {[%clk 0:00:08]}  Nf6 {[%clk 0:00:04]} 52. Qb7+ {[%clk 0:00:07]}  Kh6 {[%clk 0:00:05]} 53. Qxa6 {[%clk 0:00:07]}  Qg4# {[%clk 0:00:05]} 0-1


[Site "https://www.chess.com"]

[Event "Titled Tuesday Blitz April 19 Early 2022"]
[White "Palachev, Petr"]
[Black "Bas Mas, Jose Joaquin"]
[WhiteFideId "24129003"]
[BlackFideId "22219064"]
[WhiteElo "2339"]
[BlackElo "2212"]
[Result "1-0"]
[Round "01"]
[TimeControl "180+1"]
[Date "2022.04.19"]
[WhiteClock "0:00:45"]
[BlackClock "0:00:29"]

1. d4 {[%clk 0:03:00]}  f5 {[%clk 0:02:59]} 2. c4 {[%clk 0:03:00]}  Nf6 {[%clk 0:02:59]} 3. g3 {[%clk 0:03:01]}  e6 {[%clk 0:03:00]} 4. Bg2 {[%clk 0:03:01]}  Bb4+ {[%clk 0:03:00]} 5. Bd2 {[%clk 0:02:56]}  Be7 {[%clk 0:03:00]} 6. Nc3 {[%clk 0:02:53]}  O-O {[%clk 0:03:00]} 7. Nf3 {[%clk 0:02:51]}  a5 {[%clk 0:02:58]} 8. O-O {[%clk 0:02:51]}  Ne4 {[%clk 0:02:58]} 9. Qc2 {[%clk 0:02:47]}  Nxc3 {[%clk 0:02:51]} 10. Bxc3 {[%clk 0:02:46]}  Bf6 {[%clk 0:02:52]} 11. e4 {[%clk 0:02:44]}  fxe4 {[%clk 0:02:46]} 12. Qxe4 {[%clk 0:02:45]}  Nc6 {[%clk 0:02:41]} 13. Ne5 {[%clk 0:02:41]}  Bxe5 {[%clk 0:02:35]} 14. dxe5 {[%clk 0:02:42]}  Qe7 {[%clk 0:02:22]} 15. f4 {[%clk 0:02:38]}  b6 {[%clk 0:02:21]} 16. f5 {[%clk 0:02:33]}  exf5 {[%clk 0:02:10]} 17. Qd5+ {[%clk 0:02:14]}  Kh8 {[%clk 0:02:00]} 18. e6 {[%clk 0:02:14]}  Bb7 {[%clk 0:01:44]} 19. Qxd7 {[%clk 0:02:04]}  Qxd7 {[%clk 0:01:30]} 20. exd7 {[%clk 0:02:05]}  Nd8 {[%clk 0:01:31]} 21. Rae1 {[%clk 0:01:59]}  Bxg2 {[%clk 0:01:30]} 22. Kxg2 {[%clk 0:01:56]}  Kg8 {[%clk 0:01:29]} 23. Re8 {[%clk 0:01:45]}  Nc6 {[%clk 0:01:15]} 24. Re6 {[%clk 0:01:18]}  Nd8 {[%clk 0:01:04]} 25. Re7 {[%clk 0:01:17]}  Nf7 {[%clk 0:00:57]} 26. Rxf5 {[%clk 0:01:14]}  Rad8 {[%clk 0:00:57]} 27. c5 {[%clk 0:01:10]}  bxc5 {[%clk 0:00:52]} 28. Rxc5 {[%clk 0:01:08]}  g6 {[%clk 0:00:47]} 29. Rxc7 {[%clk 0:01:05]}  h5 {[%clk 0:00:45]} 30. h4 {[%clk 0:01:01]}  Kh7 {[%clk 0:00:44]} 31. Bxa5 {[%clk 0:00:59]}  Kh6 {[%clk 0:00:42]} 32. Rb7 {[%clk 0:00:55]}  Ra8 {[%clk 0:00:36]} 33. Rxf7 {[%clk 0:00:49]}  Rxf7 {[%clk 0:00:34]} 34. d8=Q {[%clk 0:00:49]}  Rxd8 {[%clk 0:00:32]} 35. Rxf7 {[%clk 0:00:50]}  Ra8 {[%clk 0:00:31]} 36. Bd2+ {[%clk 0:00:49]}  g5 {[%clk 0:00:30]} 37. hxg5+ {[%clk 0:00:49]}  Kg6 {[%clk 0:00:30]} 38. Rf6+ {[%clk 0:00:50]}  Kg7 {[%clk 0:00:30]} 39. Bc3 {[%clk 0:00:49]}  Kg8 {[%clk 0:00:29]} 40. g6 {[%clk 0:00:45]} 1-0


[Site "https://www.chess.com"]

[Event "Titled Tuesday Blitz April 19 Early 2022"]
[White "Papp, Petra"]
[Black "Lou, Yiping"]
[WhiteFideId "739049"]
[BlackFideId "8603928"]
[WhiteElo "2259"]
[BlackElo "2412"]
[Result "0-1"]
[Round "01"]
[TimeControl "180+1"]
[Date "2022.04.19"]
[WhiteClock "0:00:47"]
[BlackClock "0:01:09"]

1. e4 {[%clk 0:03:00]}  c6 {[%clk 0:02:58]} 2. d4 {[%clk 0:02:59]}  d5 {[%clk 0:02:57]} 3. Nd2 {[%clk 0:02:59]}  dxe4 {[%clk 0:02:56]} 4. Nxe4 {[%clk 0:02:59]}  Bf5 {[%clk 0:02:54]} 5. Ng3 {[%clk 0:02:59]}  Bg6 {[%clk 0:02:54]} 6. h4 {[%clk 0:02:59]}  h6 {[%clk 0:02:54]} 7. Nf3 {[%clk 0:02:59]}  Nd7 {[%clk 0:02:53]} 8. h5 {[%clk 0:02:59]}  Bh7 {[%clk 0:02:52]} 9. Bd3 {[%clk 0:02:59]}  Bxd3 {[%clk 0:02:52]} 10. Qxd3 {[%clk 0:02:59]}  e6 {[%clk 0:02:53]} 11. Bd2 {[%clk 0:02:59]}  Ngf6 {[%clk 0:02:52]} 12. O-O-O {[%clk 0:02:59]}  Bd6 {[%clk 0:02:52]} 13. Ne4 {[%clk 0:02:57]}  Bc7 {[%clk 0:02:51]} 14. Kb1 {[%clk 0:02:51]}  Nxe4 {[%clk 0:02:47]} 15. Qxe4 {[%clk 0:02:51]}  Nf6 {[%clk 0:02:45]} 16. Qe2 {[%clk 0:02:51]}  Qd5 {[%clk 0:02:44]} 17. Ka1 {[%clk 0:02:30]}  b5 {[%clk 0:02:39]} 18. Ne5 {[%clk 0:02:22]}  O-O {[%clk 0:02:21]} 19. g4 {[%clk 0:02:13]}  Qxd4 {[%clk 0:02:03]} 20. Nxc6 {[%clk 0:01:33]}  Qc5 {[%clk 0:02:02]} 21. Nb4 {[%clk 0:01:20]}  Rfd8 {[%clk 0:01:51]} 22. g5 {[%clk 0:01:12]}  hxg5 {[%clk 0:01:44]} 23. h6 {[%clk 0:01:11]}  a5 {[%clk 0:01:39]} 24. Nd3 {[%clk 0:01:01]}  Qxc2 {[%clk 0:01:36]} 25. Bxg5 {[%clk 0:00:59]}  Qxe2 {[%clk 0:01:34]} 26. hxg7 {[%clk 0:00:56]}  Rxd3 {[%clk 0:01:24]} 27. Rdg1 {[%clk 0:00:52]}  Nh7 {[%clk 0:01:14]} 28. Bf6 {[%clk 0:00:47]}  Be5 {[%clk 0:01:09]} 0-1


[Site "https://www.chess.com"]

[Event "Titled Tuesday Blitz April 19 Early 2022"]
[White "Petrova, Irina"]
[Black "Ezat, Mohamed"]
[WhiteFideId "14124122"]
[BlackFideId "10600906"]
[WhiteElo "1993"]
[BlackElo "2386"]
[Result "0-1"]
[Round "01"]
[TimeControl "180+1"]
[Date "2022.04.19"]
[WhiteClock "0:00:17"]
[BlackClock "0:01:08"]

1. e4 {[%clk 0:03:00]}  Nf6 {[%clk 0:02:57]} 2. e5 {[%clk 0:03:00]}  Nd5 {[%clk 0:02:56]} 3. d4 {[%clk 0:03:00]}  d6 {[%clk 0:02:56]} 4. c4 {[%clk 0:03:00]}  Nb6 {[%clk 0:02:54]} 5. exd6 {[%clk 0:03:00]}  exd6 {[%clk 0:02:51]} 6. Nc3 {[%clk 0:02:57]}  Be7 {[%clk 0:02:51]} 7. h3 {[%clk 0:02:56]}  O-O {[%clk 0:02:51]} 8. Nf3 {[%clk 0:02:56]}  Bf5 {[%clk 0:02:48]} 9. Be2 {[%clk 0:02:54]}  Bf6 {[%clk 0:02:47]} 10. O-O {[%clk 0:02:51]}  Re8 {[%clk 0:02:47]} 11. b3 {[%clk 0:02:36]}  c5 {[%clk 0:02:41]} 12. Bb2 {[%clk 0:02:30]}  Nc6 {[%clk 0:02:40]} 13. d5 {[%clk 0:02:27]}  Nd4 {[%clk 0:02:38]} 14. Nxd4 {[%clk 0:02:18]}  cxd4 {[%clk 0:02:18]} 15. Nb5 {[%clk 0:02:05]}  d3 {[%clk 0:02:18]} 16. Bxd3 {[%clk 0:02:02]}  Bxb2 {[%clk 0:02:13]} 17. Bxf5 {[%clk 0:02:01]}  Bxa1 {[%clk 0:02:12]} 18. Qxa1 {[%clk 0:02:01]}  a6 {[%clk 0:02:12]} 19. Nd4 {[%clk 0:01:52]}  Qf6 {[%clk 0:02:12]} 20. Qd1 {[%clk 0:01:45]}  Re5 {[%clk 0:02:06]} 21. Bb1 {[%clk 0:01:44]}  Rae8 {[%clk 0:02:05]} 22. Qd3 {[%clk 0:01:38]}  g6 {[%clk 0:02:03]} 23. Nf3 {[%clk 0:01:32]}  Re2 {[%clk 0:02:00]} 24. b4 {[%clk 0:00:59]}  Nd7 {[%clk 0:01:51]} 25. Qa3 {[%clk 0:00:29]}  Ne5 {[%clk 0:01:33]} 26. Nxe5 {[%clk 0:00:29]}  R8xe5 {[%clk 0:01:32]} 27. Qd3 {[%clk 0:00:20]}  Re1 {[%clk 0:01:15]} 28. Rxe1 {[%clk 0:00:18]}  Rxe1+ {[%clk 0:01:14]} 29. Kh2 {[%clk 0:00:19]}  Qf4+ {[%clk 0:01:12]} 30. Qg3 {[%clk 0:00:17]}  Qxg3+ {[%clk 0:01:12]} 31. Kxg3 {[%clk 0:00:17]}  Rxb1 {[%clk 0:01:11]} 32. c5 {[%clk 0:00:18]}  Rxb4 {[%clk 0:01:08]} 33. cxd6 {[%clk 0:00:18]}  Rd4 {[%clk 0:01:08]} 34. d7 {[%clk 0:00:17]}  Rxd5 {[%clk 0:01:08]} 0-1


[Site "https://www.chess.com"]

[Event "Titled Tuesday Blitz April 19 Early 2022"]
[White "Pinheiro, Iung Alicio de O."]
[Black "Winkels, Marcel"]
[WhiteFideId "2104350"]
[BlackFideId "1003887"]
[WhiteElo "2561"]
[BlackElo "1900"]
[Result "1-0"]
[Round "01"]
[TimeControl "180+1"]
[Date "2022.04.19"]
[WhiteClock "0:00:24"]
[BlackClock "0:00:01"]

1. c4 {[%clk 0:02:59]}  e5 {[%clk 0:02:58]} 2. g3 {[%clk 0:02:59]}  Nf6 {[%clk 0:02:56]} 3. Bg2 {[%clk 0:02:59]}  c6 {[%clk 0:02:56]} 4. d4 {[%clk 0:02:59]}  exd4 {[%clk 0:02:51]} 5. Qxd4 {[%clk 0:03:00]}  Be7 {[%clk 0:02:41]} 6. Nf3 {[%clk 0:03:00]}  O-O {[%clk 0:02:40]} 7. O-O {[%clk 0:03:00]}  d5 {[%clk 0:02:38]} 8. cxd5 {[%clk 0:02:59]}  cxd5 {[%clk 0:02:38]} 9. Rd1 {[%clk 0:02:52]}  Nc6 {[%clk 0:02:38]} 10. Qa4 {[%clk 0:02:52]}  Be6 {[%clk 0:02:24]} 11. Nc3 {[%clk 0:02:51]}  a6 {[%clk 0:02:21]} 12. Be3 {[%clk 0:02:43]}  b5 {[%clk 0:02:18]} 13. Qc2 {[%clk 0:02:33]}  Qd7 {[%clk 0:02:12]} 14. Nd4 {[%clk 0:02:25]}  Rac8 {[%clk 0:02:03]} 15. Nxc6 {[%clk 0:02:18]}  Rxc6 {[%clk 0:01:57]} 16. a3 {[%clk 0:02:15]}  Rfc8 {[%clk 0:01:56]} 17. Qd2 {[%clk 0:02:13]}  b4 {[%clk 0:01:39]} 18. axb4 {[%clk 0:02:11]}  Bxb4 {[%clk 0:01:35]} 19. Bd4 {[%clk 0:02:11]}  Ne8 {[%clk 0:01:08]} 20. Qd3 {[%clk 0:01:56]}  Bxc3 {[%clk 0:01:01]} 21. Bxc3 {[%clk 0:01:47]}  Nc7 {[%clk 0:00:53]} 22. e4 {[%clk 0:01:38]}  Rd6 {[%clk 0:00:43]} 23. Be5 {[%clk 0:01:05]}  Rb6 {[%clk 0:00:28]} 24. exd5 {[%clk 0:01:02]}  Bf5 {[%clk 0:00:21]} 25. Qd4 {[%clk 0:00:55]}  Rb5 {[%clk 0:00:18]} 26. Bxg7 {[%clk 0:00:53]}  Rd8 {[%clk 0:00:16]} 27. Bh6 {[%clk 0:00:50]}  Ne8 {[%clk 0:00:15]} 28. Re1 {[%clk 0:00:48]}  f6 {[%clk 0:00:12]} 29. Rxa6 {[%clk 0:00:42]}  Rb7 {[%clk 0:00:03]} 30. h4 {[%clk 0:00:27]}  Bg6 {[%clk 0:00:02]} 31. Bf3 {[%clk 0:00:25]}  Qf5 {[%clk 0:00:01]} 32. Kg2 {[%clk 0:00:24]} 1-0


[Site "https://www.chess.com"]